bitfinex-derivatives/quotes_BTCF0:USTF0_20250704
["timestamp","ask_amount","ask_price","bid_price","bid_amount"]
[1751644960157,1.99115329,107620.0,107610.0,0.80240976]
[1751644960359,1.99215329,107620.0,107610.0,0.80240976]
[1751644960559,1.99115329,107620.0,107610.0,0.80140976]
[1751644960764,1.99515329,107620.0,107610.0,0.80140976]
[1751644961660,2.06794743,107620.0,107610.0,0.80140976]
[1751644962550,2.06794743,107620.0,107610.0,0.4307932]
[1751644962964,2.06734332,107620.0,107610.0,0.4307932]
[1751644963159,2.06186332,107620.0,107610.0,0.4307932]
[1751644963360,1.07494332,107620.0,107610.0,0.80140976]
[1751644963554,2.06302332,107620.0,107610.0,0.4307932]
[1751644963761,2.06302332,107620.0,107610.0,0.80140976]
[1751644965266,2.06302332,107620.0,107610.0,0.4307932]
[1751644965565,2.06302332,107620.0,107610.0,0.80140976]
[1751644966160,2.06302332,107620.0,107610.0,0.4307932]
[1751644966360,2.06302332,107620.0,107610.0,0.80140976]
[1751644966666,2.06351978,107620.0,107610.0,0.80140976]
[1751644967370,2.41351978,107620.0,107610.0,0.4307932]
[1751644967971,2.06351978,107620.0,107610.0,0.80140976]
[1751644968868,2.13351978,107620.0,107610.0,0.80140976]
[1751644970370,2.15857788,107620.0,107610.0,0.80140976]
[1751644970568,1.17149788,107620.0,107610.0,0.80140976]
[1751644970765,1.17049788,107620.0,107610.0,0.80140976]
[1751644970966,2.15429788,107620.0,107610.0,0.83180976]
[1751644972175,2.15529788,107620.0,107610.0,0.83180976]
[1751644972574,2.15529788,107620.0,107610.0,0.4307932]
[1751644972776,2.40389788,107620.0,107610.0,0.4307932]
[1751644972967,2.40389788,107620.0,107610.0,0.58740976]
[1751644973167,2.40389788,107620.0,107610.0,0.2167932]
[1751644973368,2.37883978,107620.0,107610.0,0.031]
[1751644973574,2.37883978,107620.0,107610.0,0.216793]
[1751644973776,2.37883978,107620.0,107610.0,0.031]
[1751644973972,2.76945634,107620.0,107610.0,0.031]
[1751644974574,2.42393978,107620.0,107610.0,0.031]
[1751644974972,2.79455634,107620.0,107610.0,0.031]
[1751644975272,0.185793,107610.0,107600.0,0.3040527]
[1751644975474,0.1868103,107600.0,107590.0,0.01971406]
[1751644975679,0.91043063,107600.0,107590.0,0.01562459]
[1751644975873,1.93339063,107600.0,107590.0,0.01562459]
[1751644976065,0.59943063,107600.0,107590.0,0.57206885]
[1751644976270,0.60043063,107600.0,107590.0,0.85900308]
[1751644976467,1.58379063,107600.0,107590.0,0.85900308]
[1751644976671,1.58379063,107600.0,107590.0,0.88920308]
[1751644976875,1.36740033,107600.0,107590.0,0.88920308]
[1751644977172,0.36129646,107600.0,107590.0,0.88920308]
[1751644977376,1.37076245,107600.0,107590.0,0.89020308]
[1751644977574,1.37376245,107600.0,107590.0,0.89020308]
[1751644977977,1.55957305,107600.0,107590.0,0.89020308]
[1751644978171,1.56273305,107600.0,107590.0,0.89020308]
[1751644978479,1.37692245,107600.0,107590.0,0.89020308]
[1751644978878,0.57341305,107600.0,107590.0,0.89020308]
[1751644979178,1.56273305,107600.0,107590.0,0.89020308]
[1751644979374,1.56273305,107600.0,107590.0,0.51958652]
[1751644979571,1.56273305,107600.0,107590.0,0.89020308]
[1751644980268,1.56273305,107600.0,107590.0,0.48938652]
[1751644980269,1.54242686,107600.0,107590.0,0.48938652]
[1751644980474,1.57402686,107600.0,107590.0,0.48938652]
[1751644980679,0.38673989,107600.0,107590.0,0.86000308]
[1751644980880,1.37649989,107600.0,107590.0,0.89290308]
[1751644981079,1.56131029,107600.0,107590.0,0.89290308]
[1751644981276,0.00649646,107600.0,107590.0,0.99351964]
[1751644981580,0.00013925,107630.0,107590.0,0.99351964]
[1751644981581,0.01983811,107630.0,107620.0,0.1857758]
[1751644981780,0.23002042,107630.0,107620.0,0.57849799]
[1751644982083,0.04426182,107630.0,107620.0,0.57849799]
[1751644982276,1.61232042,107630.0,107620.0,0.94911455]
[1751644982673,1.42656182,107630.0,107620.0,0.94911455]
[1751644982874,0.02456296,107630.0,107620.0,0.94911455]
[1751644983183,1.01348296,107630.0,107620.0,1.30991455]
[1751644983374,1.02148296,107630.0,107620.0,0.57849799]
[1751644983674,1.02148296,107630.0,107620.0,0.94911455]
[1751644983877,1.02748296,107630.0,107620.0,0.94911455]
[1751644984070,1.02580296,107630.0,107620.0,0.94911455]
[1751644984277,1.21156156,107630.0,107620.0,0.57849799]
[1751644984477,1.24476156,107630.0,107620.0,0.54829799]
[1751644984679,1.58113785,107630.0,107620.0,0.54829799]
[1751644984880,1.58113785,107630.0,107620.0,0.91891455]
[1751644985376,2.29371441,107630.0,107620.0,0.37196702]
[1751644985576,2.35971441,107630.0,107620.0,0.48449799]
[1751644985775,2.35971441,107630.0,107620.0,0.20449799]
[1751644985972,1.96909785,107630.0,107620.0,0.25449799]
[1751644986576,1.95309785,107630.0,107620.0,0.25449799]
[1751644986779,1.95509785,107630.0,107620.0,0.25549799]
[1751644986977,0.61719805,107630.0,107620.0,0.57611455]
[1751644987178,0.58589805,107630.0,107620.0,0.97141455]
[1751644987377,1.90285805,107630.0,107620.0,0.96941455]
[1751644987577,1.90685805,107630.0,107620.0,0.97041455]
[1751644988082,1.90685805,107630.0,107620.0,0.76751455]
[1751644988288,1.68895805,107630.0,107620.0,0.76751455]
[1751644988582,1.93895805,107630.0,107620.0,0.74979236]
[1751644988975,1.96495805,107630.0,107620.0,0.74879236]
[1751644989183,1.96495805,107630.0,107620.0,0.75079236]
[1751644989683,1.67495805,107630.0,107620.0,0.76815294]
[1751644989879,1.69633412,107630.0,107620.0,0.76715294]
[1751644990086,2.00963966,107630.0,107620.0,0.76815294]
[1751644991290,1.71963966,107630.0,107620.0,0.76815294]
[1751644991587,1.72963966,107630.0,107620.0,0.76815294]
[1751644991786,1.62526359,107630.0,107620.0,0.76815294]
[1751644991989,2.33588015,107630.0,107620.0,0.20513638]
[1751644992286,2.33588015,107630.0,107620.0,0.25513638]
[1751644992485,2.32588015,107630.0,107620.0,0.25513638]
[1751644992881,1.99588015,107630.0,107620.0,0.25513638]
[1751644993088,2.33588015,107630.0,107620.0,0.25513638]
[1751644993686,1.69526359,107630.0,107620.0,0.25513638]
[1751644993882,2.07588015,107630.0,107620.0,0.25513638]
[1751644994092,1.69526359,107630.0,107620.0,0.25513638]
[1751644994284,1.97526359,107630.0,107620.0,0.25513638]
[1751644994684,1.62526359,107630.0,107620.0,0.25513638]
[1751644994989,1.98526359,107630.0,107620.0,0.25513638]
[1751644996488,1.99526359,107630.0,107620.0,0.25513638]
[1751644996684,1.72963422,107630.0,107620.0,0.25513638]
[1751644997088,1.99963422,107630.0,107620.0,0.28783638]
[1751644997287,1.99963422,107630.0,107620.0,0.65845294]
[1751644997984,1.72963422,107630.0,107620.0,0.65845294]
[1751644998188,2.00963422,107630.0,107620.0,0.28783638]
[1751644998491,2.38025078,107630.0,107620.0,0.20513638]
[1751644999682,1.39529078,107630.0,107620.0,0.20513638]
[1751644999878,1.03529078,107630.0,107620.0,0.25513638]
[1751645000190,2.36941078,107630.0,107620.0,0.25513638]
[1751645000584,2.36941078,107630.0,107620.0,0.20513638]
[1751645000785,1.61442359,107630.0,107620.0,0.01936058]
[1751645000986,1.97879119,107630.0,107620.0,0.01936058]
[1751645001285,0.20509041,107610.0,107600.0,0.2033341]
[1751645001480,1.90949041,107610.0,107600.0,0.2575237]
[1751645001686,1.97399041,107610.0,107600.0,0.4433341]
[1751645002187,2.33479041,107610.0,107600.0,0.4433341]
[1751645002388,2.33367041,107610.0,107600.0,0.4433341]
[1751645002878,2.33467041,107610.0,107600.0,0.4453341]
[1751645003079,2.33635041,107610.0,107600.0,0.79942696]
[1751645003289,2.33735041,107610.0,107600.0,0.83242696]
[1751645004192,2.29735041,107610.0,107600.0,0.83242696]
[1751645004891,1.93625041,107610.0,107600.0,0.83142696]
[1751645005085,2.01075735,107610.0,107600.0,0.83142696]
[1751645005287,2.01075735,107610.0,107600.0,0.83042696]
[1751645005490,2.01075735,107610.0,107600.0,0.83142696]
[1751645005691,1.03859735,107610.0,107600.0,0.83142696]
[1751645005884,2.00851735,107610.0,107600.0,0.83142696]
[1751645006084,2.00751735,107610.0,107600.0,0.86212696]
[1751645006280,2.00851735,107610.0,107600.0,0.86212696]
[1751645006687,2.00751735,107610.0,107600.0,0.86212696]
[1751645006979,2.00851735,107610.0,107600.0,0.86212696]
[1751645007193,2.00751735,107610.0,107600.0,0.83142696]
[1751645007384,2.00851735,107610.0,107600.0,0.83142696]
[1751645007585,2.03961735,107610.0,107600.0,0.83142696]
[1751645008082,2.40961735,107610.0,107600.0,0.83142696]
[1751645008280,2.03961735,107610.0,107600.0,0.83142696]
[1751645008592,1.44969735,107610.0,107600.0,0.83142696]
[1751645008789,2.03729735,107610.0,107600.0,0.83142696]
[1751645008989,2.41729735,107610.0,107600.0,0.83142696]
[1751645009290,2.03729735,107610.0,107600.0,0.4608104]
[1751645009485,1.06969735,107610.0,107600.0,0.83142696]
[1751645009686,2.37649735,107610.0,107600.0,0.83142696]
[1751645009888,2.41285735,107610.0,107600.0,0.83042696]
[1751645010189,2.41885735,107610.0,107600.0,0.83142696]
[1751645010689,2.03885735,107610.0,107600.0,0.83142696]
[1751645011287,2.03685735,107610.0,107600.0,0.4598104]
[1751645011591,2.04085735,107610.0,107600.0,0.83042696]
[1751645011787,0.763,107610.0,107600.0,0.83042696]
[1751645011993,0.009,107610.0,107600.0,1.20104352]
[1751645012197,0.009,107610.0,107600.0,1.23404352]
[1751645015394,1.6456,107630.0,107620.0,0.185776]
[1751645015587,0.3608,107640.0,107630.0,0.1857588]
[1751645015789,0.56691079,107650.0,107640.0,0.1857415]
[1751645016001,0.38118649,107650.0,107640.0,0.89955806]
[1751645016199,0.38018649,107650.0,107640.0,0.89955806]
[1751645016495,0.01938649,107650.0,107640.0,0.89955806]
[1751645016898,0.01938649,107650.0,107640.0,1.0290647]
[1751645017303,0.01938649,107650.0,107640.0,0.65844814]
[1751645017600,0.01938649,107650.0,107640.0,1.0290647]
[1751645018199,0.38018649,107650.0,107640.0,1.0290647]
[1751645018595,0.38018649,107650.0,107640.0,0.97444838]
[1751645018804,0.38618649,107650.0,107640.0,0.97544838]
[1751645018996,0.02538649,107650.0,107640.0,0.97544838]
[1751645019198,0.38618649,107650.0,107640.0,0.97544838]
[1751645019995,0.3668,107650.0,107640.0,0.97544838]
[1751645020201,0.3608,107670.0,107660.0,0.185707]
[1751645020510,0.36093997,107680.0,107670.0,0.1856898]
[1751645020804,0.00013997,107680.0,107670.0,1.24925459]
[1751645020994,0.00013997,107680.0,107670.0,1.28110282]
[1751645021195,0.00013997,107680.0,107670.0,1.33658657]
[1751645021402,0.0190383,107690.0,107680.0,0.1856725]
[1751645021600,0.5474349,107710.0,107690.0,0.1856553]
[1751645021798,0.5464349,107710.0,107700.0,0.60497977]
[1751645021992,0.5805349,107710.0,107700.0,0.87547623]
[1751645022196,0.5805349,107710.0,107700.0,0.50485967]
[1751645022506,0.5805349,107710.0,107700.0,0.87547623]
[1751645023011,1.35845146,107710.0,107700.0,0.29199208]
[1751645023197,1.3780152,107710.0,107700.0,0.29199208]
[1751645023401,2.3350152,107710.0,107700.0,0.07555398]
[1751645023702,1.59439864,107710.0,107700.0,0.23119208]
[1751645024096,2.34479553,107710.0,107700.0,0.23119208]
[1751645024395,1.59439864,107710.0,107700.0,0.29119208]
[1751645024709,0.64039864,107710.0,107700.0,0.29219208]
[1751645025207,0.63739864,107710.0,107700.0,0.36546747]
[1751645025600,0.63439864,107710.0,107700.0,0.36446747]
[1751645025813,0.63639864,107710.0,107700.0,0.36446747]
[1751645026199,0.41846374,107710.0,107700.0,1.0209548]
[1751645026508,0.004,107710.0,107700.0,2.4099748]
[1751645026706,0.002,107720.0,107710.0,0.1856208]
[1751645026911,0.002,107720.0,107710.0,0.53166903]
[1751645027208,0.002,107720.0,107710.0,1.32920459]
[1751645027404,0.01940333,107730.0,107720.0,0.20348384]
[1751645027598,0.01940333,107730.0,107720.0,1.05677117]
[1751645027795,0.01940333,107730.0,107720.0,1.41757117]
[1751645028003,0.01940333,107730.0,107720.0,1.41806763]
[1751645028205,0.01940333,107730.0,107720.0,1.05726763]
[1751645028400,0.01940333,107730.0,107720.0,1.41806763]
[1751645029003,0.02240333,107730.0,107720.0,1.41906763]
[1751645029203,0.005,107730.0,107720.0,1.42006763]
[1751645029699,0.004,107730.0,107720.0,1.42006763]
[1751645029896,0.004,107730.0,107720.0,0.6227803]
[1751645030099,0.004,107730.0,107720.0,1.05926763]
[1751645030299,0.004,107730.0,107720.0,0.6227803]
[1751645030503,0.004,107730.0,107720.0,1.05926763]
[1751645030710,0.1895864,107730.0,107720.0,1.05926763]
[1751645030905,0.004,107730.0,107720.0,1.05926763]
[1751645031405,0.1895864,107730.0,107720.0,1.05926763]
[1751645031601,0.5503864,107730.0,107720.0,0.5924803]
[1751645031909,0.5503864,107730.0,107720.0,0.5824803]
[1751645031910,0.5822864,107730.0,107720.0,0.5824803]
[1751645032108,2.36121436,107730.0,107720.0,0.04249646]
[1751645032404,1.95722703,107730.0,107720.0,0.00249646]
[1751645032602,2.13988303,107730.0,107720.0,0.00149646]
[1751645032806,1.58422703,107730.0,107720.0,0.00149646]
[1751645033004,2.37271436,107730.0,107720.0,0.00149646]
[1751645033714,2.37283436,107730.0,107720.0,0.18709996]
[1751645034099,2.55849036,107730.0,107720.0,0.00149646]
[1751645034608,1.77200303,107730.0,107720.0,0.18709996]
[1751645034810,1.77200303,107730.0,107720.0,0.00149646]
[1751645035008,2.55949036,107730.0,107720.0,0.00149646]
[1751645035208,2.20949036,107730.0,107720.0,0.00149646]
[1751645035406,2.53949036,107730.0,107720.0,0.00149646]
[1751645036106,1.58734703,107730.0,107720.0,0.18710006]
[1751645037809,2.39383436,107730.0,107720.0,0.18710006]
[1751645038010,1.58734703,107730.0,107720.0,0.18710006]
[1751645038206,2.02383436,107730.0,107720.0,0.18710006]
[1751645038613,2.38383436,107730.0,107720.0,0.18710006]
[1751645039414,1.58734703,107730.0,107720.0,0.18710006]
[1751645039616,1.91734703,107730.0,107720.0,0.18710006]
[1751645040012,1.58310703,107730.0,107720.0,0.23710006]
[1751645040315,0.63314703,107730.0,107720.0,0.84358739]
[1751645040616,0.41506063,107730.0,107720.0,0.87648739]
[1751645040823,1.54992753,107730.0,107720.0,0.87648739]
[1751645041015,1.54892753,107730.0,107720.0,0.87648739]
[1751645041217,1.36334063,107730.0,107720.0,0.87648739]
[1751645041415,0.41506063,107730.0,107720.0,0.44000006]
[1751645041609,1.36330063,107730.0,107720.0,0.87648739]
[1751645041815,0.41506063,107730.0,107720.0,0.87648739]
[1751645042005,1.33176063,107730.0,107720.0,0.90858739]
[1751645042410,0.38316063,107730.0,107720.0,0.90858739]
[1751645042712,0.02236063,107730.0,107720.0,0.90858739]
[1751645042913,0.003,107730.0,107720.0,0.92635914]
[1751645043115,0.94976,107730.0,107720.0,0.92635914]
[1751645044319,0.94972,107730.0,107720.0,0.92635914]
[1751645044521,0.003,107730.0,107720.0,0.92635914]
[1751645044721,0.94912,107730.0,107720.0,0.92635914]
[1751645044920,0.94892,107730.0,107720.0,0.92635914]
[1751645045125,0.94864,107730.0,107720.0,0.92635914]
[1751645045315,0.94864,107730.0,107720.0,0.48987181]
[1751645045522,1.1342269,107730.0,107720.0,0.92635914]
[1751645045821,2.24151423,107730.0,107720.0,0.45777181]
[1751645046021,1.35927423,107730.0,107720.0,0.00149646]
[1751645046224,2.78927023,107730.0,107720.0,0.00149646]
[1751645046417,2.81194737,107730.0,107720.0,0.00149646]
[1751645046617,0.62310873,107710.0,107700.0,0.20356371]
[1751645046923,2.67087067,107710.0,107700.0,0.15317724]
[1751645047125,2.67087067,107710.0,107690.0,0.01754916]
[1751645047126,0.1856386,107700.0,107690.0,0.01754916]
[1751645047326,0.1866558,107690.0,107680.0,0.37603803]
[1751645047519,1.54398359,107690.0,107680.0,0.24112643]
[1751645047719,1.54398359,107690.0,107680.0,0.01792643]
[1751645047916,2.01057092,107690.0,107680.0,0.01792643]
[1751645048121,2.00557092,107690.0,107680.0,0.01792643]
[1751645048313,2.34557092,107690.0,107680.0,0.01792643]
[1751645048823,2.34657092,107690.0,107680.0,0.02692643]
[1751645049219,1.57008359,107690.0,107680.0,0.02692643]
[1751645049420,1.89008359,107690.0,107680.0,0.02692643]
[1751645049620,1.88808359,107690.0,107680.0,0.009]
[1751645049821,2.32457092,107690.0,107680.0,0.009]
[1751645050122,2.51029892,107690.0,107680.0,0.009]
[1751645050527,2.34729442,107690.0,107680.0,0.009]
[1751645050823,0.1856731,107680.0,107670.0,0.23396994]
[1751645051025,0.5770731,107680.0,107670.0,0.35396994]
[1751645051816,0.5770731,107680.0,107670.0,0.38606994]
[1751645052020,0.5800731,107680.0,107670.0,0.38706994]
[1751645052216,0.5810731,107680.0,107670.0,0.38706994]
[1751645052728,0.5810731,107680.0,107670.0,0.82355727]
[1751645053026,0.5810731,107680.0,107670.0,0.38706994]
[1751645053423,0.5800731,107680.0,107670.0,0.3875664]
[1751645053729,0.5800731,107680.0,107670.0,0.82405373]
[1751645053924,0.5800731,107680.0,107670.0,0.70405373]
[1751645054131,1.5263531,107680.0,107670.0,0.99405373]
[1751645054327,1.5268731,107680.0,107670.0,1.02425373]
[1751645054729,1.5268731,107680.0,107670.0,0.5877664]
[1751645054928,1.5268731,107680.0,107670.0,1.02425373]
[1751645057935,0.5820731,107680.0,107670.0,1.02425373]
[1751645058136,1.5251131,107680.0,107670.0,1.02425373]
[1751645058538,1.5251131,107680.0,107670.0,0.5877664]
[1751645058837,1.5251131,107680.0,107670.0,1.02425373]
[1751645059234,1.1337531,107680.0,107670.0,1.02425373]
[1751645059437,0.5514731,107680.0,107670.0,1.02425373]
[1751645059739,1.4935931,107680.0,107670.0,0.5877664]
[1751645059938,1.4935931,107680.0,107670.0,1.02425373]
[1751645060535,1.8135931,107680.0,107670.0,0.5575664]
[1751645060735,1.8455931,107680.0,107670.0,0.5575664]
[1751645060929,1.5255931,107680.0,107670.0,0.5575664]
[1751645061440,1.5255931,107680.0,107670.0,0.99405373]
[1751645061640,1.8455931,107680.0,107670.0,0.5111442]
[1751645062439,1.8772931,107680.0,107670.0,0.5111442]
[1751645062633,1.9072931,107680.0,107670.0,0.5111442]
[1751645062838,1.9072931,107680.0,107670.0,0.2933539]
[1751645064244,1.9072931,107680.0,107670.0,0.4790442]
[1751645064441,1.5572931,107680.0,107670.0,0.2933539]
[1751645064841,1.9290931,107680.0,107670.0,0.2933539]
[1751645065041,1.9090931,107680.0,107670.0,0.2933539]
[1751645065247,1.9590931,107680.0,107670.0,0.2933539]
[1751645065550,1.9090931,107680.0,107670.0,0.2933539]
[1751645067247,1.9090931,107680.0,107660.0,0.01788315]
[1751645067248,0.1856903,107670.0,107660.0,0.01788315]
[1751645067442,1.37587763,107670.0,107660.0,0.01788315]
[1751645067845,0.1867075,107660.0,107650.0,0.05372696]
[1751645068148,1.5176475,107660.0,107650.0,0.23945176]
[1751645068345,1.5176475,107660.0,107650.0,0.67593909]
[1751645068549,1.5176475,107660.0,107650.0,0.72593909]
[1751645069747,1.5166475,107660.0,107650.0,0.72593909]
[1751645070355,1.5176475,107660.0,107650.0,0.72893909]
[1751645071857,1.5176475,107660.0,107650.0,0.24245176]
[1751645072357,1.8776475,107660.0,107650.0,0.24245176]
[1751645072543,2.34693483,107660.0,107650.0,0.2198247]
[1751645072749,2.37743483,107660.0,107650.0,0.1887247]
[1751645072950,1.9409475,107660.0,107650.0,0.1887247]
[1751645073145,1.0019075,107660.0,107650.0,0.1887247]
[1751645073349,1.9384675,107660.0,107650.0,0.003]
[1751645073755,1.6484675,107660.0,107650.0,0.003]
[1751645074056,1.9584675,107660.0,107650.0,0.003]
[1751645074452,1.9584675,107660.0,107650.0,0.1887247]
[1751645074654,1.5783075,107660.0,107650.0,0.1887247]
[1751645075151,1.5763075,107660.0,107650.0,0.1887247]
[1751645075353,1.59878217,107660.0,107650.0,0.1887247]
[1751645075655,1.59878217,107660.0,107650.0,0.003]
[1751645075957,1.59878217,107660.0,107650.0,0.1887248]
[1751645076553,1.92878217,107660.0,107650.0,0.003]
[1751645076753,1.92978217,107660.0,107650.0,0.006]
[1751645076954,1.92978217,107660.0,107650.0,0.1917247]
[1751645077754,0.99338217,107660.0,107650.0,0.1917247]
[1751645077960,1.61412217,107660.0,107650.0,0.2417247]
[1751645078258,1.61412217,107660.0,107650.0,0.2743247]
[1751645078451,1.61412217,107660.0,107650.0,0.2443247]
[1751645078854,1.61412217,107660.0,107650.0,0.2243247]
[1751645080249,1.85412217,107660.0,107650.0,0.2243247]
[1751645080651,1.85312217,107660.0,107650.0,0.2243247]
[1751645080850,1.85412217,107660.0,107650.0,0.2243247]
[1751645081052,1.88412217,107660.0,107650.0,0.2243247]
[1751645081259,1.88412217,107660.0,107650.0,0.0386]
[1751645081455,2.3206095,107660.0,107650.0,0.0386]
[1751645081663,2.3206095,107660.0,107650.0,0.006]
[1751645082058,2.0806095,107660.0,107650.0,0.006]
[1751645082362,2.3106095,107660.0,107650.0,0.006]
[1751645082760,1.88412217,107660.0,107650.0,0.006]
[1751645082952,2.3806095,107660.0,107650.0,0.006]
[1751645084765,1.76141467,107660.0,107630.0,0.08959266]
[1751645084964,1.76141467,107660.0,107630.0,0.12560441]
[1751645084965,0.908342,107640.0,107630.0,0.12560441]
[1751645085266,1.86786238,107640.0,107630.0,0.00036988]
[1751645085464,1.93245884,107640.0,107630.0,0.18612908]
[1751645085859,1.90105884,107640.0,107630.0,0.21632908]
[1751645086055,1.90105884,107640.0,107630.0,0.22132908]
[1751645086567,0.96201884,107640.0,107630.0,0.25151151]
[1751645086764,1.90233884,107640.0,107630.0,0.70532293]
[1751645087067,1.90133884,107640.0,107630.0,0.99562293]
[1751645087268,1.90233884,107640.0,107630.0,0.99562293]
[1751645087462,1.92482754,107640.0,107630.0,0.99562293]
[1751645087664,0.98450754,107640.0,107630.0,0.99562293]
[1751645087858,1.89348776,107640.0,107630.0,0.99562293]
[1751645088065,0.92831884,107640.0,107630.0,0.99562293]
[1751645088275,1.89204678,107640.0,107630.0,0.99662293]
[1751645088567,1.53124678,107640.0,107630.0,0.99662293]
[1751645088959,1.53224678,107640.0,107630.0,0.99662293]
[1751645089371,1.53124678,107640.0,107630.0,0.99662293]
[1751645090079,1.50875884,107640.0,107630.0,0.99662293]
[1751645090564,1.51075884,107640.0,107630.0,0.99662293]
[1751645091369,1.50975884,107640.0,107630.0,0.99662293]
[1751645091576,1.51075884,107640.0,107630.0,0.99662293]
[1751645091875,1.50975884,107640.0,107630.0,0.99662293]
[1751645092076,1.51075884,107640.0,107630.0,0.99662293]
[1751645092878,1.89405197,107640.0,107630.0,0.37281151]
[1751645093170,1.92465197,107640.0,107630.0,0.34251151]
[1751645093377,2.31755197,107640.0,107630.0,0.34251151]
[1751645093679,2.7440393,107640.0,107630.0,0.10436988]
[1751645093875,2.7742393,107640.0,107630.0,0.10436988]
[1751645094177,2.7742393,107640.0,107630.0,0.00436988]
[1751645094676,2.75174617,107640.0,107630.0,0.00436988]
[1751645095271,2.7742455,107640.0,107630.0,0.00436988]
[1751645095692,2.33775817,107640.0,107630.0,0.00436988]
[1751645095919,2.7742455,107640.0,107630.0,0.19012848]
[1751645096174,2.06775817,107640.0,107630.0,0.19012848]
[1751645096475,2.32775817,107640.0,107630.0,0.19012848]
[1751645096773,2.32775817,107640.0,107630.0,0.00436988]
[1751645097574,2.30525884,107640.0,107630.0,0.19012848]
[1751645097775,2.30525884,107640.0,107630.0,0.00436988]
[1751645097976,2.77174617,107640.0,107630.0,0.00436988]
[1751645098870,2.71174617,107640.0,107630.0,0.19012848]
[1751645099268,2.42425443,107640.0,107630.0,0.00436988]
[1751645099476,2.3477671,107640.0,107630.0,0.00436988]
[1751645099677,2.78425443,107640.0,107630.0,0.00436988]
[1751645100180,2.3477671,107640.0,107630.0,0.00436988]
[1751645100382,2.6207671,107640.0,107630.0,0.00336988]
[1751645100684,2.6217671,107640.0,107630.0,0.00436988]
[1751645100890,3.05825443,107640.0,107630.0,0.00436988]
[1751645101381,2.77825443,107640.0,107630.0,0.00436988]
[1751645101581,2.77725443,107640.0,107630.0,0.00136988]
[1751645101773,3.03825443,107640.0,107630.0,0.00136988]
[1751645102177,2.77825443,107640.0,107630.0,0.00136988]
[1751645102383,3.03825443,107640.0,107630.0,0.00136988]
[1751645103177,3.01825443,107640.0,107630.0,0.00136988]
[1751645103376,2.3317671,107640.0,107630.0,0.00136988]
[1751645103677,3.03825443,107640.0,107630.0,0.00136988]
[1751645104278,2.3417671,107640.0,107630.0,0.00136988]
[1751645104474,3.05725443,107640.0,107630.0,0.00136988]
[1751645104675,3.05825443,107640.0,107630.0,0.00136988]
[1751645105077,2.6217671,107640.0,107630.0,0.00136988]
[1751645105280,3.06825443,107640.0,107630.0,0.00136988]
[1751645105584,3.00825443,107640.0,107630.0,0.00136988]
[1751645105780,2.69889448,107640.0,107630.0,0.00136988]
[1751645105980,3.04889448,107640.0,107630.0,0.00136988]
[1751645106381,2.98266394,107640.0,107630.0,0.00136988]
[1751645106780,2.3417671,107640.0,107630.0,0.00136988]
[1751645106976,2.71266394,107640.0,107630.0,0.00136988]
[1751645107182,2.70266394,107640.0,107630.0,0.00136988]
[1751645107483,3.00266394,107640.0,107630.0,0.00136988]
[1751645107785,2.3317671,107640.0,107630.0,0.00136988]
[1751645108086,2.98266394,107640.0,107630.0,0.00136988]
[1751645108279,1.76742394,107640.0,107630.0,0.00136988]
[1751645108481,2.3280471,107640.0,107630.0,0.00136988]
[1751645109085,1.78742394,107640.0,107630.0,0.00136988]
[1751645109275,2.99730394,107640.0,107630.0,0.00136988]
[1751645109583,2.99830394,107640.0,107630.0,0.00136988]
[1751645109884,2.6274071,107640.0,107630.0,0.00136988]
[1751645110382,2.99830394,107640.0,107630.0,0.00136988]
[1751645110583,2.99774394,107640.0,107630.0,0.00136988]
[1751645111385,2.6268471,107640.0,107630.0,0.00136988]
[1751645111585,2.99774394,107640.0,107630.0,0.00136988]
[1751645111781,2.99730394,107640.0,107630.0,0.00136988]
[1751645111979,1.78742394,107640.0,107630.0,0.00136988]
[1751645112175,2.99690394,107640.0,107630.0,0.00136988]
[1751645113080,2.6260071,107640.0,107630.0,0.00136988]
[1751645113278,1.78742394,107640.0,107630.0,0.00136988]
[1751645113482,2.99694394,107640.0,107630.0,0.00136988]
[1751645113882,2.6260471,107640.0,107630.0,0.00136988]
[1751645114083,1.78742394,107640.0,107630.0,0.00136988]
[1751645114288,2.99666394,107640.0,107630.0,0.00136988]
[1751645114875,2.2557671,107640.0,107630.0,0.00136988]
[1751645115076,2.99666394,107640.0,107630.0,0.00136988]
[1751645116182,0.1857584,107630.0,107620.0,0.0653]
[1751645116382,1.3123635,107630.0,107620.0,0.0653]
[1751645116686,1.31285996,107630.0,107620.0,0.0329]
[1751645116885,0.97316312,107630.0,107620.0,0.0329]
[1751645117083,1.34405996,107630.0,107620.0,0.0329]
[1751645117379,1.34505996,107630.0,107620.0,0.0339]
[1751645117580,0.63416312,107630.0,107620.0,0.001]
[1751645117784,1.33705996,107630.0,107620.0,0.001]
[1751645117984,1.33755642,107630.0,107620.0,0.001]
[1751645118488,1.08755642,107630.0,107620.0,0.001]
[1751645118690,1.31755642,107630.0,107620.0,0.001]
[1751645119187,0.1857757,107620.0,107610.0,0.08798375]
[1751645119387,2.29349224,107620.0,107610.0,0.09798375]
[1751645119592,2.2939887,107620.0,107610.0,0.09798375]
[1751645119788,1.92309186,107620.0,107610.0,0.09798375]
[1751645119989,2.2939887,107620.0,107610.0,0.09798375]
[1751645120285,1.9839887,107620.0,107610.0,0.08798375]
[1751645120489,2.3039887,107620.0,107610.0,0.08798375]
[1751645120685,1.61309186,107620.0,107610.0,0.08798375]
[1751645120987,2.2720887,107620.0,107610.0,0.27377675]
[1751645121185,1.55119186,107620.0,107610.0,0.27377675]
[1751645121389,1.55119186,107620.0,107610.0,0.08798375]
[1751645121586,1.90119186,107620.0,107610.0,0.08798375]
[1751645121888,1.55119186,107620.0,107610.0,0.08798375]
[1751645122090,1.91119186,107620.0,107610.0,0.27377675]
[1751645122589,0.56845186,107620.0,107610.0,0.64467359]
[1751645122796,1.78477186,107620.0,107610.0,0.99747359]
[1751645122984,1.78577186,107620.0,107610.0,0.99747359]
[1751645123184,1.78477186,107620.0,107610.0,0.99747359]
[1751645123386,1.78577186,107620.0,107610.0,0.99747359]
[1751645123586,2.09677186,107620.0,107610.0,0.99747359]
[1751645124486,2.09677186,107620.0,107610.0,0.98563294]
[1751645124886,2.09677186,107620.0,107610.0,0.62657675]
[1751645125087,2.09677186,107620.0,107610.0,0.98563294]
[1751645125582,2.10677186,107620.0,107610.0,0.98563294]
[1751645126195,1.78677186,107620.0,107610.0,0.98563294]
[1751645126391,2.10677186,107620.0,107610.0,0.98563294]
[1751645126698,1.78677186,107620.0,107610.0,0.98563294]
[1751645126893,2.14677186,107620.0,107610.0,0.98563294]
[1751645127093,1.78677186,107620.0,107610.0,0.98563294]
[1751645127393,2.14677186,107620.0,107610.0,0.98563294]
[1751645127891,2.16677186,107620.0,107610.0,0.98563294]
[1751645128895,1.78677186,107620.0,107610.0,0.98563294]
[1751645129097,2.14952876,107620.0,107610.0,0.98563294]
[1751645129297,2.12677186,107620.0,107610.0,0.98563294]
[1751645130090,1.84685186,107620.0,107610.0,0.98563294]
[1751645130793,1.51685186,107620.0,107610.0,0.98563294]
[1751645130993,0.57045186,107620.0,107610.0,0.98563294]